[Event "*** Titled Tuesday Blitz"]
[Site "Chess.com"]
[Date "2020.05.05"]
[Round "3"]
[White "heyiampotato"]
[Black "mishikomchedlishvili"]
[Result "0-1"]
[WhiteElo "2544"]
[BlackElo "2842"]
[TimeControl "180+1"]
[EndTime "10:32:14 PDT"]
[Termination "mishikomchedlishvili won by checkmate"]

1. d4 {[%clk 0:03:00.9]} 1... d6 {[%clk 0:02:58.3]} 2. Nf3 {[%clk 0:03:00.1]}
2... g6 {[%clk 0:02:57.6]} 3. c4 {[%clk 0:03:00.2]} 3... Bg7 {[%clk 0:02:57.5]}
4. Nc3 {[%clk 0:03:00.8]} 4... Bg4 {[%clk 0:02:57.1]} 5. e3 {[%clk 0:02:52.5]}
5... Nf6 {[%clk 0:02:55.7]} 6. Be2 {[%clk 0:02:52.8]} 6... O-O {[%clk
0:02:55.2]} 7. h3 {[%clk 0:02:52.6]} 7... Bf5 {[%clk 0:02:53.8]} 8. O-O {[%clk
0:02:50.1]} 8... Re8 {[%clk 0:02:48.5]} 9. Ng5 {[%clk 0:02:42]} 9... e5 {[%clk
0:02:44.3]} 10. d5 {[%clk 0:02:20.2]} 10... e4 {[%clk 0:02:35.1]} 11. h4 {[%clk
0:01:48.1]} 11... h6 {[%clk 0:02:33.1]} 12. g4 {[%clk 0:01:46.4]} 12... Nxg4
{[%clk 0:02:20]} 13. Bxg4 {[%clk 0:01:21.1]} 13... hxg5 {[%clk 0:02:18.6]} 14.
Bxf5 {[%clk 0:00:55]} 14... gxf5 {[%clk 0:02:18]} 15. Qh5 {[%clk 0:00:54.5]}
15... gxh4 {[%clk 0:02:06.7]} 16. Kh1 {[%clk 0:00:54.8]} 16... Qf6 {[%clk
0:01:41.1]} 17. Rg1 {[%clk 0:00:51.8]} 17... Nd7 {[%clk 0:01:41.2]} 18. Nb5
{[%clk 0:00:47]} 18... Re5 {[%clk 0:01:36.7]} 19. Bd2 {[%clk 0:00:38.9]} 19...
f4 {[%clk 0:01:35.7]} 20. Qg4 {[%clk 0:00:39.4]} 20... Re7 {[%clk 0:01:02.1]}
21. exf4 {[%clk 0:00:36.2]} 21... Qg6 {[%clk 0:00:43.7]} 22. Bc3 {[%clk
0:00:31]} 22... Qxg4 {[%clk 0:00:37.4]} 23. Rxg4 {[%clk 0:00:30.4]} 23... f5
{[%clk 0:00:37.4]} 24. Rg5 {[%clk 0:00:10.7]} 24... Kf8 {[%clk 0:00:24.6]} 25.
Nxc7 {[%clk 0:00:09.6]} 25... Bxc3 {[%clk 0:00:22.6]} 26. Nxa8 {[%clk
0:00:09.7]} 26... Bxb2 {[%clk 0:00:19.6]} 27. Rb1 {[%clk 0:00:09.4]} 27... Bd4
{[%clk 0:00:17.6]} 28. Nc7 {[%clk 0:00:09]} 28... Nc5 {[%clk 0:00:16.9]} 29.
Ne6+ {[%clk 0:00:08.3]} 29... Nxe6 {[%clk 0:00:16.1]} 30. dxe6 {[%clk
0:00:09.2]} 30... Bxf2 {[%clk 0:00:14.2]} 31. Rxf5+ {[%clk 0:00:09.5]} 31... Ke8
{[%clk 0:00:14.4]} 32. Kg2 {[%clk 0:00:07.4]} 32... e3 {[%clk 0:00:13.9]} 33.
Kf3 {[%clk 0:00:07.2]} 33... Rxe6 {[%clk 0:00:13.1]} 34. Ke2 {[%clk 0:00:07.7]}
34... b6 {[%clk 0:00:12.1]} 35. Rh5 {[%clk 0:00:07.6]} 35... Kd7 {[%clk
0:00:11.9]} 36. Rh7+ {[%clk 0:00:07.2]} 36... Kc6 {[%clk 0:00:11.5]} 37. Rxa7
{[%clk 0:00:07.8]} 37... Re4 {[%clk 0:00:10.2]} 38. Ra4 {[%clk 0:00:07.2]} 38...
Rd4 {[%clk 0:00:10]} 39. f5 {[%clk 0:00:04.8]} 39... Rf4 {[%clk 0:00:08.5]} 40.
Rxb6+ {[%clk 0:00:03.7]} 40... Kc7 {[%clk 0:00:06.1]} 41. Rba6 {[%clk
0:00:03.3]} 41... h3 {[%clk 0:00:06]} 42. Ra7+ {[%clk 0:00:03.6]} 42... Kc6
{[%clk 0:00:05.8]} 43. R7a6+ {[%clk 0:00:04.1]} 43... Kd7 {[%clk 0:00:05.3]} 44.
Ra7+ {[%clk 0:00:04.6]} 44... Kc6 {[%clk 0:00:05.4]} 45. R7a6+ {[%clk 0:00:05]}
45... Kc5 {[%clk 0:00:05.7]} 46. R6a5+ {[%clk 0:00:05.5]} 46... Kb6 {[%clk
0:00:05.9]} 47. Ra6+ {[%clk 0:00:06]} 47... Kb7 {[%clk 0:00:06.3]} 48. Ra7+
{[%clk 0:00:05.5]} 48... Kc8 {[%clk 0:00:06.2]} 49. Ra8+ {[%clk 0:00:06]} 49...
Kd7 {[%clk 0:00:06.5]} 50. R4a7+ {[%clk 0:00:06.3]} 50... Kc6 {[%clk 0:00:06.6]}
51. Ra6+ {[%clk 0:00:06.8]} 51... Kc5 {[%clk 0:00:06.6]} 52. Ra5+ {[%clk
0:00:07.4]} 52... Kd4 {[%clk 0:00:06.7]} 53. Rd5+ {[%clk 0:00:07.5]} 53... Kxc4
{[%clk 0:00:06]} 54. Rxd6 {[%clk 0:00:08]} 54... h2 {[%clk 0:00:05]} 55. Ra4+
{[%clk 0:00:06]} 55... Kc5 {[%clk 0:00:04.1]} 56. Rh6 {[%clk 0:00:06]} 56...
Rxa4 {[%clk 0:00:02.9]} 57. Rxh2 {[%clk 0:00:06.7]} 57... Rxa2+ {[%clk
0:00:03.3]} 58. Kf3 {[%clk 0:00:07.1]} 58... Ra1 {[%clk 0:00:03.7]} 59. Rh5
{[%clk 0:00:06.7]} 59... Ra6 {[%clk 0:00:04]} 60. f6+ {[%clk 0:00:06.9]} 60...
Kd6 {[%clk 0:00:04.6]} 61. f7 {[%clk 0:00:07.6]} 61... Ke7 {[%clk 0:00:04.3]}
62. Rf5 {[%clk 0:00:08.2]} 62... Kf8 {[%clk 0:00:04.6]} 63. Ke2 {[%clk
0:00:08.7]} 63... Ra7 {[%clk 0:00:05.2]} 64. Rf3 {[%clk 0:00:08.1]} 64... Rxf7
{[%clk 0:00:05.6]} 65. Rh3 {[%clk 0:00:08]} 65... Rd7 {[%clk 0:00:06.1]} 66.
Rh8+ {[%clk 0:00:08.2]} 66... Ke7 {[%clk 0:00:05.5]} 67. Rb8 {[%clk 0:00:08.6]}
67... Rd2+ {[%clk 0:00:05.1]} 68. Kf3 {[%clk 0:00:09.5]} 68... Rd6 {[%clk
0:00:05.6]} 69. Rb4 {[%clk 0:00:09.2]} 69... Ke6 {[%clk 0:00:06]} 70. Re4+
{[%clk 0:00:08.9]} 70... Kd5 {[%clk 0:00:05.7]} 71. Re8 {[%clk 0:00:09.1]} 71...
Rf6+ {[%clk 0:00:06.1]} 72. Ke2 {[%clk 0:00:09.3]} 72... Re6 {[%clk 0:00:06.7]}
73. Ra8 {[%clk 0:00:09.5]} 73... Ke5 {[%clk 0:00:07.4]} 74. Ra5+ {[%clk
0:00:09.9]} 74... Kf6 {[%clk 0:00:08]} 75. Ra4 {[%clk 0:00:10.4]} 75... Rd6
{[%clk 0:00:08.3]} 76. Rf4+ {[%clk 0:00:10.8]} 76... Ke5 {[%clk 0:00:08.7]} 77.
Rf8 {[%clk 0:00:11.3]} 77... Rd2+ {[%clk 0:00:09]} 78. Kf3 {[%clk 0:00:11.5]}
78... Kd4 {[%clk 0:00:09.5]} 79. Rd8+ {[%clk 0:00:11.4]} 79... Kc3 {[%clk
0:00:09.7]} 80. Rc8+ {[%clk 0:00:11.8]} 80... Kd3 {[%clk 0:00:09.8]} 81. Rd8+
{[%clk 0:00:12.1]} 81... Kc2 {[%clk 0:00:10.1]} 82. Rc8+ {[%clk 0:00:12.6]}
82... Kd1 {[%clk 0:00:10.5]} 83. Ra8 {[%clk 0:00:11.8]} 83... Rc2 {[%clk
0:00:10.8]} 84. Ra1+ {[%clk 0:00:11.8]} 84... Kd2 {[%clk 0:00:11.1]} 85. Ra8
{[%clk 0:00:10]} 85... e2 {[%clk 0:00:11.4]} 86. Rd8+ {[%clk 0:00:10.4]} 86...
Ke1 {[%clk 0:00:11.7]} 87. Re8 {[%clk 0:00:10]} 87... Rc3+ {[%clk 0:00:11.5]}
88. Kg2 {[%clk 0:00:09.7]} 88... Be3 {[%clk 0:00:11.4]} 89. Kf3 {[%clk 0:00:09]}
89... Bd2+ {[%clk 0:00:10.6]} 90. Kg2 {[%clk 0:00:09.1]} 90... Kd1 {[%clk
0:00:10.8]} 91. Re6 {[%clk 0:00:04.9]} 91... e1=R {[%clk 0:00:09.6]} 92. Rxe1+
{[%clk 0:00:05.4]} 92... Kxe1 {[%clk 0:00:09.5]} 93. Kh2 {[%clk 0:00:05.5]}
93... Kf2 {[%clk 0:00:08.6]} 94. Kh1 {[%clk 0:00:06]} 94... Rh3# {[%clk
0:00:08.5]} 0-1

[Event "*** Titled Tuesday Blitz"]
[Site "Chess.com"]
[Date "2020.05.05"]
[Round "3"]
[White "lupta_robin"]
[Black "johnathan113"]
[Result "1/2-1/2"]
[WhiteElo "2505"]
[BlackElo "2724"]
[TimeControl "180+1"]
[EndTime "10:32:46 PDT"]
[Termination "Game drawn - insufficient material"]

1. e4 {[%clk 0:03:00.9]} 1... c5 {[%clk 0:02:59.5]} 2. b3 {[%clk 0:03:00.8]}
2... g6 {[%clk 0:02:59.1]} 3. Bb2 {[%clk 0:02:59.4]} 3... Nf6 {[%clk 0:02:59.7]}
4. g3 {[%clk 0:02:58.8]} 4... Bg7 {[%clk 0:02:59.1]} 5. Bg2 {[%clk 0:02:59]}
5... O-O {[%clk 0:02:58.4]} 6. d3 {[%clk 0:02:56.7]} 6... Nc6 {[%clk 0:02:49.4]}
7. Nd2 {[%clk 0:02:54.6]} 7... d6 {[%clk 0:02:45.5]} 8. Ne2 {[%clk 0:02:42.9]}
8... Bg4 {[%clk 0:02:30.5]} 9. h3 {[%clk 0:02:40.8]} 9... Bd7 {[%clk 0:02:30.5]}
10. O-O {[%clk 0:02:38.2]} 10... Qc8 {[%clk 0:02:30.7]} 11. Kh2 {[%clk
0:02:12.6]} 11... b5 {[%clk 0:02:26.2]} 12. a4 {[%clk 0:02:01.9]} 12... a6
{[%clk 0:02:26]} 13. axb5 {[%clk 0:01:43.4]} 13... axb5 {[%clk 0:02:26.9]} 14.
Rxa8 {[%clk 0:01:42.6]} 14... Qxa8 {[%clk 0:02:27.8]} 15. Qb1 {[%clk 0:01:42.8]}
15... Qa5 {[%clk 0:02:26.4]} 16. Nf3 {[%clk 0:01:35.9]} 16... e5 {[%clk
0:02:16.6]} 17. Qa1 {[%clk 0:01:27.3]} 17... Ra8 {[%clk 0:02:15.2]} 18. Qxa5
{[%clk 0:01:26.2]} 18... Rxa5 {[%clk 0:02:15.6]} 19. Ra1 {[%clk 0:01:26.3]}
19... Rxa1 {[%clk 0:02:16.2]} 20. Bxa1 {[%clk 0:01:26.2]} 20... Nb4 {[%clk
0:02:16.3]} 21. Ne1 {[%clk 0:01:26.2]} 21... Ne8 {[%clk 0:02:15.5]} 22. Bc3
{[%clk 0:01:21.7]} 22... Nc6 {[%clk 0:02:13.8]} 23. Bd2 {[%clk 0:01:14.1]} 23...
Nc7 {[%clk 0:02:14.1]} 24. f4 {[%clk 0:01:09.8]} 24... Ne6 {[%clk 0:02:09]} 25.
Nc3 {[%clk 0:01:02]} 25... Ned4 {[%clk 0:02:07.6]} 26. Nd5 {[%clk 0:00:59.4]}
26... Kf8 {[%clk 0:02:00]} 27. Kg1 {[%clk 0:00:55.8]} 27... h5 {[%clk
0:01:58.3]} 28. Kf2 {[%clk 0:00:53.9]} 28... Bh6 {[%clk 0:01:49.8]} 29. Be3
{[%clk 0:00:46.8]} 29... Bg7 {[%clk 0:01:46.4]} 30. Bd2 {[%clk 0:00:42.5]} 30...
Ke8 {[%clk 0:01:44.1]} 31. Be3 {[%clk 0:00:37.9]} 31... Kd8 {[%clk 0:01:44.2]}
32. fxe5 {[%clk 0:00:36.4]} 32... Bxe5 {[%clk 0:01:41.9]} 33. Bg5+ {[%clk
0:00:35.2]} 33... Kc8 {[%clk 0:01:40.5]} 34. Bf4 {[%clk 0:00:32.5]} 34... Kb7
{[%clk 0:01:35.6]} 35. Bxe5 {[%clk 0:00:31.9]} 35... Nxe5 {[%clk 0:01:36.5]} 36.
Ke3 {[%clk 0:00:29.4]} 36... Ka6 {[%clk 0:01:30.7]} 37. b4 {[%clk 0:00:29.2]}
37... Nec6 {[%clk 0:01:15.8]} 38. c3 {[%clk 0:00:28.7]} 38... Ne6 {[%clk
0:01:15.2]} 39. Nc2 {[%clk 0:00:28]} 39... Ne5 {[%clk 0:01:12.9]} 40. Bf1 {[%clk
0:00:24.3]} 40... Ng5 {[%clk 0:01:08.3]} 41. h4 {[%clk 0:00:22.7]} 41... Ng4+
{[%clk 0:01:03.9]} 42. Kd2 {[%clk 0:00:20.6]} 42... Nf3+ {[%clk 0:01:02.8]} 43.
Ke2 {[%clk 0:00:20.6]} 43... Nfe5 {[%clk 0:01:00]} 44. Bg2 {[%clk 0:00:17.4]}
44... f5 {[%clk 0:00:48.8]} 45. d4 {[%clk 0:00:17.2]} 45... cxd4 {[%clk
0:00:45.2]} 46. Nxd4 {[%clk 0:00:16.4]} 46... Nh6 {[%clk 0:00:26.5]} 47. Ne7
{[%clk 0:00:13]} 47... fxe4 {[%clk 0:00:22.5]} 48. Bxe4 {[%clk 0:00:12.7]} 48...
Bg4+ {[%clk 0:00:23.4]} 49. Kf2 {[%clk 0:00:11]} 49... Nhf7 {[%clk 0:00:17]} 50.
Nxg6 {[%clk 0:00:09.8]} 50... Nc4 {[%clk 0:00:14.2]} 51. Bd5 {[%clk 0:00:08.2]}
51... Nfe5 {[%clk 0:00:14.3]} 52. Nxe5 {[%clk 0:00:08.1]} 52... dxe5 {[%clk
0:00:13.9]} 53. Nf3 {[%clk 0:00:05.6]} 53... Nb2 {[%clk 0:00:10.9]} 54. Nh2
{[%clk 0:00:05.5]} 54... Nd1+ {[%clk 0:00:10.7]} 55. Ke1 {[%clk 0:00:05.6]}
55... Nxc3 {[%clk 0:00:11.6]} 56. Nxg4 {[%clk 0:00:05.2]} 56... Nxd5 {[%clk
0:00:07.9]} 57. Nxe5 {[%clk 0:00:05.4]} 57... Nxb4 {[%clk 0:00:08.5]} 58. g4
{[%clk 0:00:05.2]} 58... hxg4 {[%clk 0:00:05.6]} 59. Nxg4 {[%clk 0:00:05.7]}
59... Nd5 {[%clk 0:00:06.5]} 60. h5 {[%clk 0:00:06]} 60... b4 {[%clk 0:00:05.4]}
61. h6 {[%clk 0:00:05.9]} 61... b3 {[%clk 0:00:03.1]} 62. h7 {[%clk 0:00:04.5]}
62... b2 {[%clk 0:00:03]} 63. h8=Q {[%clk 0:00:04.7]} 63... b1=Q+ {[%clk
0:00:03.9]} 64. Kf2 {[%clk 0:00:05.2]} 64... Qc2+ {[%clk 0:00:03.8]} 65. Kg3
{[%clk 0:00:05.6]} 65... Qd3+ {[%clk 0:00:03.6]} 66. Kh4 {[%clk 0:00:05.8]}
66... Nb6 {[%clk 0:00:01.8]} 67. Qa1+ {[%clk 0:00:05.5]} 67... Kb5 {[%clk
0:00:02.2]} 68. Qb2+ {[%clk 0:00:05.6]} 68... Ka6 {[%clk 0:00:02.9]} 69. Qa2+
{[%clk 0:00:05.6]} 69... Kb7 {[%clk 0:00:03.3]} 70. Qf7+ {[%clk 0:00:05.3]}
70... Ka6 {[%clk 0:00:03.8]} 71. Qf4 {[%clk 0:00:05.3]} 71... Qh7+ {[%clk
0:00:03]} 72. Qh6 {[%clk 0:00:05.1]} 72... Qg8 {[%clk 0:00:03.8]} 73. Qg5 {[%clk
0:00:05.3]} 73... Qh8+ {[%clk 0:00:03.7]} 74. Qh6 {[%clk 0:00:05.6]} 74... Qc8
{[%clk 0:00:04.6]} 75. Qg5 {[%clk 0:00:05.9]} 75... Qd7 {[%clk 0:00:05]} 76. Qf4
{[%clk 0:00:06.3]} 76... Nd5 {[%clk 0:00:05.2]} 77. Qf1+ {[%clk 0:00:05.7]}
77... Kb6 {[%clk 0:00:03.9]} 78. Qf2+ {[%clk 0:00:06.2]} 78... Kc7 {[%clk
0:00:03.8]} 79. Qg3+ {[%clk 0:00:06.2]} 79... Kb7 {[%clk 0:00:03.8]} 80. Qe5
{[%clk 0:00:06.7]} 80... Qh7+ {[%clk 0:00:04]} 81. Kg3 {[%clk 0:00:06.9]} 81...
Qd3+ {[%clk 0:00:04.9]} 82. Kh4 {[%clk 0:00:07.2]} 82... Qd2 {[%clk 0:00:05.2]}
83. Qg7+ {[%clk 0:00:04.9]} 83... Kc6 {[%clk 0:00:05.6]} 84. Qe5 {[%clk
0:00:05.3]} 84... Kc5 {[%clk 0:00:02.9]} 85. Qe6 {[%clk 0:00:04.4]} 85... Kd4
{[%clk 0:00:01.9]} 86. Qe5+ {[%clk 0:00:03.6]} 86... Kc5 {[%clk 0:00:02.1]} 87.
Qe6 {[%clk 0:00:04.2]} 87... Qd1 {[%clk 0:00:02.6]} 88. Qc8+ {[%clk 0:00:04.5]}
88... Kd4 {[%clk 0:00:03]} 89. Qf5 {[%clk 0:00:05]} 89... Qh1+ {[%clk
0:00:02.5]} 90. Kg5 {[%clk 0:00:05.5]} 90... Qc1+ {[%clk 0:00:03.4]} 91. Kh5
{[%clk 0:00:05]} 91... Qc7 {[%clk 0:00:04.3]} 92. Qf2+ {[%clk 0:00:04.5]} 92...
Ke4 {[%clk 0:00:04.1]} 93. Qe2+ {[%clk 0:00:04.6]} 93... Kf4 {[%clk 0:00:04]}
94. Qd2+ {[%clk 0:00:04.4]} 94... Kg3 {[%clk 0:00:03.9]} 95. Qxd5 {[%clk
0:00:03.3]} 95... Qh7+ {[%clk 0:00:03.5]} 96. Nh6 {[%clk 0:00:03.4]} 96... Qc2
{[%clk 0:00:03.3]} 97. Qg5+ {[%clk 0:00:03.5]} 97... Kf3 {[%clk 0:00:02.6]} 98.
Nf5 {[%clk 0:00:03.6]} 98... Qh2+ {[%clk 0:00:02.1]} 99. Nh4+ {[%clk 0:00:03.7]}
99... Ke2 {[%clk 0:00:01.9]} 100. Qg4+ {[%clk 0:00:03.8]} 100... Ke1 {[%clk
0:00:02]} 101. Kg5 {[%clk 0:00:03.3]} 101... Qe2 {[%clk 0:00:02.2]} 102. Nf3+
{[%clk 0:00:02.6]} 102... Kf2 {[%clk 0:00:02.8]} 103. Qd4+ {[%clk 0:00:02.9]}
103... Kxf3 {[%clk 0:00:02.5]} 104. Qf4+ {[%clk 0:00:03.3]} 104... Kg2 {[%clk
0:00:02.6]} 105. Qg4+ {[%clk 0:00:03.9]} 105... Qxg4+ {[%clk 0:00:02.2]} 106.
Kxg4 {[%clk 0:00:04.2]} 1/2-1/2

[Event "*** Titled Tuesday Blitz"]
[Site "Chess.com"]
[Date "2020.05.05"]
[Round "3"]
[White "RianKapriaga"]
[Black "Barbus89"]
[Result "0-1"]
[WhiteElo "2137"]
[BlackElo "2339"]
[TimeControl "180+1"]
[EndTime "10:33:07 PDT"]
[Termination "Barbus89 won by checkmate"]

1. d4 {[%clk 0:03:00.8]} 1... Nf6 {[%clk 0:02:59.5]} 2. Nf3 {[%clk 0:03:00.8]}
2... e6 {[%clk 0:02:59.7]} 3. Bf4 {[%clk 0:03:00.1]} 3... b6 {[%clk 0:02:57.3]}
4. e3 {[%clk 0:02:59.9]} 4... Bb7 {[%clk 0:02:57.2]} 5. Be2 {[%clk 0:02:58.9]}
5... d6 {[%clk 0:02:55.5]} 6. Nc3 {[%clk 0:02:58.5]} 6... Be7 {[%clk 0:02:55]}
7. O-O {[%clk 0:02:56.9]} 7... O-O {[%clk 0:02:54.4]} 8. Bc4 {[%clk 0:02:55.9]}
8... a6 {[%clk 0:02:52]} 9. a4 {[%clk 0:02:55.6]} 9... c5 {[%clk 0:02:50.6]} 10.
d5 {[%clk 0:02:43.8]} 10... e5 {[%clk 0:02:44.6]} 11. Bg3 {[%clk 0:02:39.9]}
11... Nh5 {[%clk 0:02:44.4]} 12. Nd2 {[%clk 0:02:28.4]} 12... Nxg3 {[%clk
0:02:34.1]} 13. hxg3 {[%clk 0:02:27.6]} 13... Nd7 {[%clk 0:02:31.1]} 14. e4
{[%clk 0:02:19.6]} 14... Nf6 {[%clk 0:02:22.4]} 15. Be2 {[%clk 0:02:15.8]} 15...
g6 {[%clk 0:02:18.9]} 16. Nc4 {[%clk 0:02:15.2]} 16... b5 {[%clk 0:02:07.1]} 17.
axb5 {[%clk 0:02:11.6]} 17... axb5 {[%clk 0:02:05.2]} 18. Rxa8 {[%clk
0:02:10.8]} 18... Qxa8 {[%clk 0:01:59.8]} 19. Nxb5 {[%clk 0:02:10.2]} 19... Nxe4
{[%clk 0:01:59.9]} 20. Bf3 {[%clk 0:01:56.3]} 20... Qa4 {[%clk 0:01:46.7]} 21.
Nba3 {[%clk 0:01:09.5]} 21... Nf6 {[%clk 0:01:31.7]} 22. Ne3 {[%clk 0:01:04.6]}
22... Qa8 {[%clk 0:01:20.4]} 23. c4 {[%clk 0:01:03.5]} 23... Ba6 {[%clk
0:01:14.3]} 24. b3 {[%clk 0:01:02.3]} 24... Rb8 {[%clk 0:01:08.3]} 25. Nb1
{[%clk 0:01:00.4]} 25... Bc8 {[%clk 0:01:02.4]} 26. Nd2 {[%clk 0:00:59.6]} 26...
Qa2 {[%clk 0:00:45.3]} 27. Qc2 {[%clk 0:00:54.4]} 27... Ra8 {[%clk 0:00:26.1]}
28. Rc1 {[%clk 0:00:47]} 28... Bd8 {[%clk 0:00:25.7]} 29. Ne4 {[%clk 0:00:42.3]}
29... Qxc2 {[%clk 0:00:22.5]} 30. Rxc2 {[%clk 0:00:38.6]} 30... Nxe4 {[%clk
0:00:22.2]} 31. Bxe4 {[%clk 0:00:38.4]} 31... f5 {[%clk 0:00:23]} 32. Bf3 {[%clk
0:00:36.1]} 32... Ra1+ {[%clk 0:00:19.4]} 33. Bd1 {[%clk 0:00:35.1]} 33... Bf6
{[%clk 0:00:18.9]} 34. Rd2 {[%clk 0:00:33.5]} 34... e4 {[%clk 0:00:18]} 35. Nf1
{[%clk 0:00:32.9]} 35... Bc3 {[%clk 0:00:17.3]} 36. Rc2 {[%clk 0:00:30.9]} 36...
Bd4 {[%clk 0:00:13.7]} 37. Be2 {[%clk 0:00:30.9]} 37... Ra3 {[%clk 0:00:12]} 38.
Kh2 {[%clk 0:00:29.1]} 38... Rxb3 {[%clk 0:00:12]} 39. Ra2 {[%clk 0:00:29.4]}
39... Rb2 {[%clk 0:00:10.4]} 40. Rxb2 {[%clk 0:00:29.1]} 40... Bxb2 {[%clk
0:00:11.3]} 41. Ne3 {[%clk 0:00:29.1]} 41... Bd4 {[%clk 0:00:09.2]} 42. Kg1
{[%clk 0:00:29.5]} 42... Bxe3 {[%clk 0:00:08.3]} 43. fxe3 {[%clk 0:00:30.1]}
43... Kg7 {[%clk 0:00:09.2]} 44. Kf1 {[%clk 0:00:30.3]} 44... Kf6 {[%clk
0:00:09.9]} 45. Bd1 {[%clk 0:00:30.5]} 45... Ke5 {[%clk 0:00:10.8]} 46. Bb3
{[%clk 0:00:30]} 46... Ba6 {[%clk 0:00:10.7]} 47. Ke2 {[%clk 0:00:29.9]} 47...
g5 {[%clk 0:00:11.6]} 48. Kd2 {[%clk 0:00:29.6]} 48... f4 {[%clk 0:00:11.5]} 49.
gxf4+ {[%clk 0:00:29.5]} 49... gxf4 {[%clk 0:00:12.4]} 50. Ba2 {[%clk
0:00:29.2]} 50... f3 {[%clk 0:00:09.8]} 51. gxf3 {[%clk 0:00:29.3]} 51... exf3
{[%clk 0:00:10.7]} 52. Ke1 {[%clk 0:00:28.8]} 52... Kf5 {[%clk 0:00:06.8]} 53.
Kf2 {[%clk 0:00:29.1]} 53... Kg4 {[%clk 0:00:07.1]} 54. e4 {[%clk 0:00:29.1]}
54... h5 {[%clk 0:00:06.8]} 55. e5 {[%clk 0:00:29.2]} 55... dxe5 {[%clk
0:00:07]} 56. d6 {[%clk 0:00:29.2]} 56... Bc8 {[%clk 0:00:06.9]} 57. Bb1 {[%clk
0:00:29]} 57... Bd7 {[%clk 0:00:05.9]} 58. Be4 {[%clk 0:00:29.2]} 58... Kf4
{[%clk 0:00:06.2]} 59. Bxf3 {[%clk 0:00:29.4]} 59... h4 {[%clk 0:00:07.1]} 60.
Bd5 {[%clk 0:00:28.3]} 60... e4 {[%clk 0:00:07.1]} 61. Ke2 {[%clk 0:00:26.8]}
61... h3 {[%clk 0:00:07.1]} 62. Kf2 {[%clk 0:00:27.1]} 62... e3+ {[%clk
0:00:05.3]} 63. Ke2 {[%clk 0:00:27.3]} 63... h2 {[%clk 0:00:05.3]} 64. Bh1
{[%clk 0:00:26.8]} 64... Be6 {[%clk 0:00:03.8]} 65. Kd3 {[%clk 0:00:24.9]} 65...
Bd7 {[%clk 0:00:03.3]} 66. Ke2 {[%clk 0:00:24.1]} 66... Bg4+ {[%clk 0:00:03.1]}
67. Kd3 {[%clk 0:00:24.2]} 67... Bf3 {[%clk 0:00:01.5]} 68. d7 {[%clk
0:00:22.9]} 68... Bxh1 {[%clk 0:00:01.5]} 69. d8=Q {[%clk 0:00:22.6]} 69... Be4+
{[%clk 0:00:02.4]} 70. Kc3 {[%clk 0:00:23]} 70... h1=Q {[%clk 0:00:03.3]} 71.
Qf6+ {[%clk 0:00:23.2]} 71... Kg3 {[%clk 0:00:03.9]} 72. Qg5+ {[%clk 0:00:23]}
72... Kf2 {[%clk 0:00:04.5]} 73. Qf4+ {[%clk 0:00:21.5]} 73... Qf3 {[%clk
0:00:05.2]} 74. Qh4+ {[%clk 0:00:21.7]} 74... Ke2 {[%clk 0:00:04.9]} 75. Qh2+
{[%clk 0:00:21.6]} 75... Qf2 {[%clk 0:00:05]} 76. Qh5+ {[%clk 0:00:20]} 76...
Bf3 {[%clk 0:00:05.9]} 77. Qxc5 {[%clk 0:00:18.5]} 77... Ke1 {[%clk 0:00:05.8]}
78. Kb3 {[%clk 0:00:16]} 78... Qd2 {[%clk 0:00:05.1]} 79. Qf5 {[%clk 0:00:14.6]}
79... Qd1+ {[%clk 0:00:04.5]} 80. Kb4 {[%clk 0:00:13.1]} 80... e2 {[%clk
0:00:04.7]} 81. Qxf3 {[%clk 0:00:11.9]} 81... Qd2+ {[%clk 0:00:05.6]} 82. Kb5
{[%clk 0:00:11.2]} 82... Kd1 {[%clk 0:00:05.6]} 83. c5 {[%clk 0:00:10.5]} 83...
Kc1 {[%clk 0:00:05.1]} 84. Qa3+ {[%clk 0:00:07.6]} 84... Qb2+ {[%clk 0:00:05.3]}
85. Qxb2+ {[%clk 0:00:06.7]} 85... Kxb2 {[%clk 0:00:06.2]} 86. c6 {[%clk
0:00:07.1]} 86... e1=Q {[%clk 0:00:07.1]} 87. Kb6 {[%clk 0:00:07.4]} 87... Qe3+
{[%clk 0:00:06.4]} 88. Kb7 {[%clk 0:00:07.4]} 88... Qb3+ {[%clk 0:00:06.8]} 89.
Ka7 {[%clk 0:00:06.8]} 89... Qa4+ {[%clk 0:00:06]} 90. Kb7 {[%clk 0:00:06.7]}
90... Qb5+ {[%clk 0:00:05.9]} 91. Kc7 {[%clk 0:00:06.8]} 91... Kc3 {[%clk
0:00:05.9]} 92. Kd6 {[%clk 0:00:06.9]} 92... Qb6 {[%clk 0:00:06.1]} 93. Kd7
{[%clk 0:00:06.9]} 93... Qd4+ {[%clk 0:00:06.4]} 94. Kc8 {[%clk 0:00:06.8]}
94... Qh8+ {[%clk 0:00:04.9]} 95. Kb7 {[%clk 0:00:06.7]} 95... Qh1 {[%clk
0:00:03.9]} 96. Kb6 {[%clk 0:00:06.2]} 96... Qb1+ {[%clk 0:00:03.6]} 97. Ka7
{[%clk 0:00:05.8]} 97... Qa2+ {[%clk 0:00:03.5]} 98. Kb8 {[%clk 0:00:05.4]}
98... Qb3+ {[%clk 0:00:03.7]} 99. Kc8 {[%clk 0:00:05.4]} 99... Kc4 {[%clk
0:00:03.9]} 100. c7 {[%clk 0:00:05.4]} 100... Kb5 {[%clk 0:00:04]} 101. Kd8
{[%clk 0:00:05.3]} 101... Qd5+ {[%clk 0:00:03.9]} 102. Ke7 {[%clk 0:00:03.5]}
102... Qc5+ {[%clk 0:00:03.6]} 103. Kd8 {[%clk 0:00:03.1]} 103... Qd6+ {[%clk
0:00:03.9]} 104. Kc8 {[%clk 0:00:03.5]} 104... Kb6 {[%clk 0:00:03.5]} 105. Kb8
{[%clk 0:00:03.2]} 105... Qxc7+ {[%clk 0:00:04.4]} 106. Ka8 {[%clk 0:00:03.5]}
106... Qa7# {[%clk 0:00:05.3]} 0-1

[Event "*** Titled Tuesday Blitz"]
[Site "Chess.com"]
[Date "2020.05.05"]
[Round "4"]
[White "AcsinteMatei"]
[Black "Juanovic"]
[Result "1-0"]
[WhiteElo "2406"]
[BlackElo "2172"]
[TimeControl "180+1"]
[EndTime "10:34:58 PDT"]
[Termination "AcsinteMatei won by resignation"]

1. d4 {[%clk 0:02:54.6]} 1... d5 {[%clk 0:02:59.8]} 2. Bf4 {[%clk 0:02:54.1]}
2... Nf6 {[%clk 0:02:59.5]} 3. e3 {[%clk 0:02:53.9]} 3... c6 {[%clk 0:02:58.4]}
4. Nd2 {[%clk 0:02:48.9]} 4... g6 {[%clk 0:02:56]} 5. Ngf3 {[%clk 0:02:47.1]}
5... Bg7 {[%clk 0:02:56.4]} 6. h4 {[%clk 0:02:47.2]} 6... h5 {[%clk 0:02:56.2]}
7. Bd3 {[%clk 0:02:47.5]} 7... Nbd7 {[%clk 0:02:56.5]} 8. Ne5 {[%clk 0:02:47.4]}
8... Nxe5 {[%clk 0:02:56.6]} 9. Bxe5 {[%clk 0:02:47.4]} 9... Qb6 {[%clk
0:02:54.7]} 10. b3 {[%clk 0:02:25.6]} 10... a5 {[%clk 0:02:54.3]} 11. c4 {[%clk
0:02:25.8]} 11... a4 {[%clk 0:02:53.7]} 12. bxa4 {[%clk 0:02:13.3]} 12... Rxa4
{[%clk 0:02:53.2]} 13. Qxa4 {[%clk 0:02:09]} 1-0